{"text_format":"1","workbook":"xlsx","n_sheets":3,"sheets":["الكشف المطلوب","كلفة الدار","كلفة الفقرة"],"not_rendered":{"charts":0,"images":0,"macros":0,"external_links":0,"defined_names":3,"comments":0,"pivot_tables":0},"unopened":[],"bounds":{"document_bytes":16777216,"sheet_cells":100000,"rows_first":2000,"rows_last":500,"rows_between":2000,"halvings":0,"cell_chars":16384,"cell_head_chars":4096},"cells_cut":0,"cells_raw":0,"read":"whole","date_system":"1900"}

{"sheet":"الكشف المطلوب","index":0,"n_rows":33,"n_cols":141,"rows_kept":33,"cut":false,"hidden":false,"merged":[]}
["رقم الفقرة","المواد والعمل المطلوب","Unit","M1","M2","M5","M8","M10","M11","M12","M13","M14","M17","M18","M20","M22","M24","M25","M27","M28","M29","M30","M31","M32","M33","M34","M35","M36","M37","M38","M39","M40","M41","M42","M47","M52","M53","M54","M59","M61","M62","M63","M64","M65","M68","M69","M73","M79","M80","M89","M93","M94","M96","M98","M100","M101","M103","M104","M105","M106","M107","M108","M109","M110","M111","M112","M113","M114","M115","M116","N2","N7","N8","N9","N15","N16","N17","N18","N20","N21","N22","N23","N24","N26","N28","N29","N37","N41","N43","N46","N47","N51","N52","N53","N54","N55","N57","N58","N59","N61","N62","N63","N64","N65","N67","N68","N69","N70","N71","N74","N76","N77","N78","N79","N80","N81","N82","N83","N84","N85","N86","N87","N91","N92","N97","N100","N104","N105","N106","N108","N111","N112","N113","N114","N116","N117","N118","N119","N120","N121","Total"]
[1,"تجهيز المواد والمعدات والأيدي العاملة اللازمة لتجهيز وتثبيت زجاج سمك 4ملم, ويتضمن العمل ازالة الزجاج المتضرر ورفع الانقاض وكل المتطلبات لانجاز العمل حسب توجيهات المهندس المشرف على أن يتم أستخدام العمال المحليين وبموجب الأجور في السوق المحلية.","m2",7,10,null,null,null,15,null,8,null,null,null,null,null,null,null,5,null,5,null,20,4,null,null,null,4,null,4,null,null,null,null,null,8,6,null,10,10,15,10,20,null,10,8,15,null,null,null,10,null,null,null,null,5,null,null,null,15,null,null,null,null,20,null,null,null,null,null,null,10,5,null,null,null,null,null,null,null,8,10,10,5,null,null,null,null,null,null,null,null,null,null,null,null,10,null,null,null,null,null,null,null,null,null,null,null,null,null,null,null,10,null,15,20,null,null,null,null,null,null,10,null,25,10,5,null,15,null,null,null,null,null,4,null,null,15,null,null,{"$f":"SUM(D2:EJ2)","v":431}]
[2,"تجهيز المواد و المعدات والأيدي العاملة اللازمة لتجهيز وتبديل باب خشب (1*2.1)م كبس صاج وجهين (سمك الطبقة لا يقل عن 5ملم) والحشوة الداخلية لا تقل عن 50%, شاملا العمل ازالة الاطار القديم (الجرجوبة) و تجهيز وتثبيت اطار خشب جديد مع الصبغ ثلاث طبقات للباب والاطار مع تجهيز وتثبيت كيلون منشأ تركي نوعية جيدة, مع اعادة الانهاءات للجدران والارضية كما كانت عليها و حسب توجيهات المهندس المشرف على أن يتم أستخدام العمال المحليين وبموجب الأجور في السوق المحلية.","EA.",2,null,null,null,null,null,null,null,null,null,null,1,null,null,null,null,null,null,null,null,2,null,null,null,null,null,null,null,null,null,null,null,null,null,null,null,4,null,null,null,null,null,null,null,null,null,null,null,null,null,null,null,null,null,null,null,null,null,null,null,null,null,null,null,null,null,null,null,3,null,null,null,null,null,null,null,null,null,null,null,null,null,null,null,null,null,null,null,null,null,null,null,null,null,null,null,3,1,null,null,null,null,null,null,null,null,null,1,null,null,null,null,null,1,null,null,null,null,null,null,null,4,2,null,null,null,null,null,null,null,null,null,null,null,3,null,null,27]
[3,"تجهيز المواد و المعدات والأيدي العاملة اللازمة لتجهيز وتبديل باب خشب (1*2.1)م كبس صاج وجهين (سمك الطبقة لا يقل عن 4ملم) والحشوة الداخلية لا تقل عن 50%, شاملا العمل صيانة الاطار القديم (الجرجوبة) مع الصبغ ثلاث طبقات للباب والاطار مع تجهيز وتثبيت كيلون منشأ تركي نوعية جيدة مع كل المتطلبات و حسب توجيهات المهندس المشرف على أن يتم أستخدام العمال المحليين وبموجب الأجور في السوق المحلية.","EA.",4,null,null,null,null,null,null,null,null,null,null,null,null,null,null,null,null,null,null,null,null,null,null,null,null,null,null,null,null,null,null,1,null,null,null,null,null,4,null,null,2,null,null,null,null,null,null,null,null,null,null,null,2,null,null,null,null,null,null,null,null,null,null,null,null,null,null,null,null,2,null,1,null,null,null,null,null,null,null,null,null,null,null,null,null,null,3,null,null,null,1,null,3,2,null,null,null,null,null,null,null,null,null,null,null,null,null,null,null,null,null,null,null,null,null,null,null,null,null,null,null,null,null,null,null,null,null,null,null,null,null,null,null,null,null,null,null,25]
[4,"تجهيز المواد و المعدات والأيدي العاملة اللازمة لتجهيز وتبديل باب حديد (1*2.1)م كبس وجهين (سمك طبقة البليت لا يقل عن 1.5ملم) مع اطار داخلي انبوب مستطيل (4*7.5 سم) سمك 2 ملم مع استبدال الاطار القديم (الجرجوبة) باطار حديد جديد على أن يتم صبغ الباب والاطار بطلاء مانع الصدأ ومن ثم الصبغ بالطلاء الدهني ثلاث طبقات مع تجهيز وتثبيت كيلون منشأ تركي نوعية جيدة, شاملا العمل اعادة الانهاءات للجدران والارضية كما كانت عليها وكل المتطلبات حسب توجيهات المهندس المشرف على أن يتم أستخدام العمال المحليين وبموجب الأجور في السوق المحلية.","EA.",null,9,2,10,null,8,null,6,5,1,null,null,null,3,null,3,8,null,null,5,null,null,1,1,2,null,null,null,1,4,null,2,null,10,null,3,2,1,null,1,null,5,2,4,null,6,null,5,null,null,5,null,null,5,null,null,8,null,2,6,null,7,null,null,2,null,1,null,2,3,4,null,null,null,null,null,null,8,4,4,4,null,1,null,null,null,null,null,1,5,null,null,2,null,null,null,null,null,4,null,null,4,1,null,null,null,null,null,null,4,null,null,null,null,null,null,2,null,null,2,1,1,null,2,null,5,null,1,1,null,1,1,1,null,null,4,null,219]
[5,"تجهيز المواد والمعدات والأيدي العاملة اللازمة لتجهيز وتثبيت باب PVC بلاستك (0.9*2)م مع الاطار وتثبيت كيلون منشأ تركي نوعية جيدة وكل المتطلبات لانجاز العمل وحسب توجيهات المهندس المشرف على أن يتم أستخدام العمال المحليين وبموجب الأجور في السوق المحلية.","EA.",null,1,null,1,1,null,null,null,2,null,1,null,1,1,null,1,null,null,2,null,null,null,null,null,null,null,null,null,null,null,null,null,null,null,null,null,null,null,6,1,2,null,null,null,null,null,null,null,null,null,3,null,null,null,null,null,1,null,1,null,null,null,null,null,null,null,null,2,null,1,null,null,null,null,null,null,null,null,null,null,1,null,null,null,null,null,null,null,null,1,null,null,null,null,null,null,null,null,1,null,null,null,null,null,2,null,null,null,5,1,null,null,null,null,null,null,2,null,null,3,null,1,null,null,null,null,4,null,null,null,null,1,null,null,null,null,null,50]
[6,"تجهيز المواد والمعدات والأيدي العاملة اللازمة لتثبيت باب حديد سلايد (3*2)م باستخدام بليت لا يقل سمكه عن 2ملم ومقاطع حديد قياس (4* 7.5)سم سمك 3 ملم على أن يتم صبغ كل الاجزاء بطلاء مانع الصدأ ومن ثم الصبغ بالطلاء الدهني ثلاث طبقات مع تثبيت كيلون منشأ تركي نوعية جيدة, شاملا العمل صب قواعد وأعمدة كونكريتية مسلحة عدد2 ولبخ الأعمدة بمونة الاسمنت والرمل مع النثر أو الصبغ وكل المتطلبات حسب توجيهات المهندس المشرف على أن يتم أستخدام العمال المحليين وبموجب الأجور في السوق المحلية. ","EA.",null,null,null,null,null,null,null,null,null,null,null,null,null,null,null,null,null,null,1,null,null,null,null,null,null,null,null,null,null,null,null,null,null,null,null,null,null,null,null,null,null,1,null,1,null,null,1,null,null,null,1,null,null,null,null,null,null,null,null,null,null,null,null,null,null,null,null,1,null,null,null,null,null,null,null,null,null,null,null,null,null,null,null,null,null,null,null,null,null,null,null,1,null,null,null,null,null,null,null,null,null,1,null,null,null,null,null,null,null,1,1,null,null,null,null,null,1,1,null,null,null,null,null,null,null,null,null,null,null,null,null,null,null,null,null,1,null,13]
[7,"تجهيز المواد والمعدات والعمل لتجهيز وتثبيت شبابيك حديد مع كتائب الحماية,على أن يتم صبغ الشباك بطلاء مانع الصدأ ومن ثم الصبغ بالطلاء الدهني ثلاث طبقات مع تثبيت زجاج 4 ملم واقفال نوعية جيدة ومشبك مانع ذباب للفتحات المتحركة وكل المتطلبات من اعمال انهاءات الجدار من الداخل والخارج حسب الموقع بعد تثبيت الشباك وحسب توجيهات المهندس المشرف على أن يتم أستخدام العمال المحليين وبموجب الأجور في السوق المحلية.","m2",2,null,null,null,null,2,null,null,3,null,2,null,4,null,null,null,null,null,null,2,null,null,2,null,null,null,1,null,2,null,null,null,3,null,null,null,null,null,null,null,null,null,null,null,null,null,null,null,null,null,null,null,null,null,null,null,null,null,null,null,null,null,null,null,3,null,2,null,null,null,null,3,null,null,null,null,null,null,null,null,null,null,2,null,null,null,null,null,3,9,8,null,null,null,null,null,null,null,null,null,null,null,3,null,null,null,null,null,null,null,null,null,null,null,null,null,null,null,null,null,3,3,null,null,null,null,null,null,null,null,3,2,2,null,null,1,null,70]
[8,"تجهيز المواد والمعدات والعمل لتجهيز وتثبيت شبابيك (PVC)بلاستك مع تثبيت زجاج 4 ملم واقفال نوعية جيدة ومشبك مانع ذباب للفتحات المتحركة وكل المتطلبات وحسب توجيهات المهندس المشرف على أن يتم أستخدام العمال المحليين وبموجب الأجور في السوق المحلية.","m2",null,null,null,null,null,null,null,null,null,null,null,null,null,null,2,null,null,null,null,null,null,null,null,null,null,null,null,null,null,null,null,null,null,null,null,null,null,null,null,null,null,null,null,null,null,null,null,null,null,null,null,null,null,null,null,null,null,null,null,null,null,null,null,null,null,null,null,null,null,null,null,null,null,null,null,null,null,null,null,null,null,null,null,null,null,null,null,null,null,null,null,null,null,null,null,null,null,null,null,null,null,null,null,null,null,null,null,null,null,null,null,null,null,null,null,null,null,null,null,null,null,null,null,null,null,null,null,null,null,null,null,null,null,null,null,null,null,2]
[9,"تجهيز المواد والمعدات والأيدي العاملة اللازمة لاعمال انهاءات السقوف والجدران الداخلية, شاملا العمل قشط وازالة المساحات المتضررة ورفع الانقاض واعادة السطار والبياض من جديد بالجص والبورك وكل المتطلبات لانجاز العمل حسب توجيهات المهندس المشرف على أن يتم أستخدام العمال المحليين وبموجب الأجور في السوق المحلية.","m2",50,null,175,100,80,56,null,null,140,60,200,150,80,60,125,220,60,60,70,40,150,null,60,null,null,null,null,130,75,null,null,100,null,null,null,140,null,220,50,200,null,100,125,null,null,150,null,160,null,130,null,null,100,null,140,250,100,100,50,100,200,200,130,75,70,null,75,100,200,250,60,75,null,null,170,75,100,null,125,null,175,50,null,null,null,200,100,100,160,20,200,null,null,150,100,135,200,60,175,110,90,125,75,160,null,null,110,170,100,50,null,100,null,100,null,100,70,100,null,125,null,null,250,300,100,200,null,150,50,null,50,75,75,null,200,80,150,11351]
[10,"تجهيز المواد والمعدات والأيدي العاملة اللازمة لاعمال اللبخ بمونة السمنت والرمل بنسبة (3:1), شاملا العمل قشط وازالة المساحات المتضررة ورفع الانقاض واعادة اللبخ من جديد وحسب توجيهات المهندس المشرف على أن يتم أستخدام العمال المحليين وبموجب الأجور في السوق المحلية.","m2",null,null,null,120,null,150,200,null,null,130,150,null,20,null,150,null,null,null,150,150,null,null,null,null,null,null,null,null,null,null,null,75,null,null,150,null,null,null,null,null,null,null,null,null,null,50,null,null,null,65,null,150,75,70,40,null,null,150,null,null,null,null,150,20,null,null,null,null,null,null,null,null,null,null,null,null,null,70,null,150,null,150,null,null,null,null,null,null,null,125,null,null,null,150,null,null,150,150,null,null,150,null,null,150,250,null,150,null,null,null,150,200,null,null,null,null,null,null,100,null,65,null,null,null,null,null,null,null,null,100,null,null,null,100,null,50,45,4670]
[11,"تجهيز المواد و المعدات والأيدي العاملة اللازمة لصبغ السقوف والجدران بالاصباغ البلاستيكية ثلاث طبقات, شاملا العمل اعمال التصليحات والمعالجة والطلاء الاساس وكل المتطلبات حسب توجيهات المهندس المشرف على أن يتم أستخدام العمال المحليين وبموجب الأجور في السوق المحلية.","m2",null,200,null,150,250,250,null,null,400,200,null,null,250,500,null,null,null,null,null,500,null,null,null,null,null,null,null,null,null,null,null,null,null,400,null,null,400,null,225,null,null,200,250,null,null,null,null,200,null,null,200,null,null,null,null,null,300,null,null,150,null,null,null,null,null,null,null,null,null,null,null,null,null,null,null,null,null,150,300,null,null,null,null,null,200,400,null,null,null,null,null,null,null,null,null,null,null,null,null,300,null,200,null,380,null,null,null,null,null,300,null,150,null,null,null,null,null,null,null,300,null,null,null,null,null,null,null,null,null,null,null,null,null,null,null,null,null,7705]
[12,"تجهيز المواد والمعدات والأيدي العاملة اللازمة لبناء ستارة باستخدام بلوك مجوف قياس (15*20*40)سم ومونة السمنت والرمل (3:1) شاملا العمل ازالة الاجزاء المتضررة ورفع الانقاض وكل المتطلبات لانجاز العمل وحسب توجيهات المهندس المشرف على أن يتم أستخدام العمال المحليين وبموجب الأجور في السوق المحلية.","m2",null,null,null,null,null,null,null,null,null,null,null,null,null,null,null,null,null,null,null,null,null,null,null,null,null,null,null,null,null,null,null,null,null,null,null,null,null,null,null,null,null,null,null,null,null,null,null,null,null,null,null,null,null,null,null,null,null,null,null,null,null,null,null,null,null,null,null,null,null,null,null,null,null,null,null,null,null,null,null,null,null,null,null,null,null,null,null,null,null,null,null,null,null,null,null,null,null,null,null,null,null,null,null,null,null,null,27,null,null,null,null,null,null,null,null,null,null,null,null,null,null,null,null,null,null,null,null,null,null,null,null,null,null,null,null,null,null,27]
[13,"تجهيز المواد والمعدات والأيدي العاملة اللازمة لبناء الجدران باستخدام بلوك مجوف قياس (20*20*40)سم ومونة السمنت والرمل (3:1) شاملا العمل ازالة الاجزاء المتضررة ورفع الانقاض وكل المتطلبات لانجاز العمل وحسب توجيهات المهندس المشرف على أن يتم أستخدام العمال المحليين وبموجب الأجور في السوق المحلية.","m2",null,null,null,null,null,null,null,null,null,null,null,10,null,null,null,null,null,null,null,null,null,null,null,null,null,null,null,40,80,80,null,null,null,null,64,30,null,null,3,null,null,null,null,null,null,null,85,null,null,null,null,100,null,null,40,null,null,null,null,null,null,null,null,null,null,null,80,null,null,null,null,55,null,null,null,null,null,null,null,80,null,null,50,null,null,null,null,null,55,25,null,50,80,null,null,null,null,null,null,null,null,35,50,null,null,50,null,null,null,12,85,null,null,null,45,null,40,50,35,null,60,40,null,null,null,null,60,null,null,null,60,37,85,null,null,null,null,1751]
[14,"تجهيز المواد والمعدات والأيدي العاملة اللازمة لبناء جدران حجر سمك 30سم باستخدام مونة السمنت والرمل (3:1) شاملا العمل ازالة الاجزاء المتضررة ورفع الانقاض وكل المتطلبات لانجاز العمل وحسب توجيهات المهندس المشرف على أن يتم أستخدام العمال المحليين وبموجب الأجور في السوق المحلية.","m2",null,null,null,null,null,null,null,null,null,null,null,null,null,null,10,null,null,null,null,null,null,null,50,null,null,null,null,null,null,null,10,null,null,null,null,null,null,null,null,null,null,null,null,null,null,50,null,null,null,null,null,null,null,null,null,null,null,null,null,null,null,null,null,null,50,null,null,null,null,null,null,null,null,null,null,null,null,null,null,null,null,null,null,null,null,null,null,null,null,null,null,null,null,null,null,null,null,40,null,null,null,null,null,null,null,null,null,50,null,null,null,null,null,40,null,null,null,null,null,null,null,null,null,null,null,null,null,50,40,null,null,null,null,null,null,null,null,390]
[15,"تجهيز المواد والمعدات والأيدي العاملة اللازمة لاعمال تغليف سيراميك جدران وارضيات باستخدام مونة السمنت والرمل (3:1), شاملا العمل قلع الطبقات الحالية المتضررة ورفع الانقاض وتغليف سيراميك جديد وكل المتطلبات لانجاز العمل حسب توجيهات المهندس المشرف على أن يتم أستخدام العمال المحليين وبموجب الأجور في السوق المحلية.","m2",50,null,null,null,null,null,null,null,null,null,30,null,null,null,null,null,null,null,55,null,95,null,null,null,null,null,null,null,null,null,null,null,72,null,null,20,null,null,null,null,75,null,62,60,null,null,null,null,null,null,60,null,50,null,60,null,40,null,45,null,null,null,null,70,null,null,null,100,null,60,null,null,null,null,null,null,null,null,null,null,null,null,null,null,null,null,70,null,null,35,null,null,60,50,null,null,null,null,25,70,70,30,null,null,60,null,null,null,45,45,null,null,null,null,null,null,20,null,null,60,null,null,null,null,null,null,null,null,null,null,null,null,null,null,null,null,null,1644]
[16,"تجهيز المواد والمعدات والأيدي العاملة اللازمة لاعمال تغليف ارضيات بالكاشي الموزائيك باستخدام مونة السمنت والرمل (3:1), شاملا العمل قلع الطبقات الحالية المتضررة ورفع الانقاض وكل المتطلبات لانجاز العمل و حسب توجيهات المهندس المشرف على أن يتم أستخدام العمال المحليين وبموجب الأجور في السوق المحلية.","m2",null,null,null,null,null,null,null,null,null,null,null,null,null,null,null,null,null,null,null,null,null,null,null,null,null,null,null,null,null,null,null,null,null,null,null,null,null,null,null,null,null,null,null,null,null,null,null,null,null,null,null,null,null,null,null,null,null,null,null,null,null,null,null,null,null,null,null,null,null,null,null,null,null,null,null,null,null,null,null,null,null,null,null,null,null,null,null,null,null,null,null,null,null,null,null,null,null,null,null,null,null,null,null,null,null,null,null,null,null,null,null,null,null,null,25,null,null,null,null,null,null,null,null,null,null,null,null,null,null,null,null,null,null,null,null,null,null,25]
[17,"تجهيز المواد والمعدات والأيدي العاملة اللازمة لصب كونكريت مسلح, (12 ملم) حديد التسليح, (15*15 سم) المسافة البينية بين القضبان, سمك الصب (20 سم) للأجزاء المتضررة من السقوف بنسبة خلط (3:1.5:1) مع اضافة مادة SBR لربطه مع الكونكريت القديم شاملا العمل قلع المساحات المتضررة ورفع الانقاض وكل المتطلبات لانجاز العمل حسب توجيهات المهندس المشرف على أن يتم أستخدام العمال المحليين وبموجب الأجور في السوق المحلية.","m2",null,null,null,null,null,null,null,null,null,28,null,null,null,null,null,null,null,null,null,15,null,null,null,null,null,null,null,null,22,20,null,null,null,null,null,null,null,null,45,15,null,null,null,null,null,null,null,null,78,50,null,null,null,null,null,null,null,null,null,null,null,null,25,2,null,null,22,null,20,null,null,22,80,50,50,55,70,null,null,null,null,55,50,null,null,null,null,null,22,null,null,null,null,null,null,15,null,25,null,null,15,null,22,null,null,null,null,25,null,4,null,null,50,30,null,null,3,null,40,null,20,20,null,null,70,30,30,null,null,70,null,35,22,70,40,null,null,1432]
[18,"تجهيز المواد والمعدات والعمل لتثبيت سقوف وقواطع من الساندويج بنل (5سم) مع هيكل حديد من انبوب مقطع مستطيل بوري شخاطة (4*7.5)سم سمك 2ملم شاملا العمل صبغ الهيكل بطلاء مانع الصدأ وطبقتين من الطلاء الدهني وكل المتطلبات لانجاز العمل حسب توجيهات المهندس المشرف على أن يتم أستخدام العمال المحليين وبموجب الأجور في السوق المحلية.","m2",24,18,25,null,null,null,null,null,null,null,null,45,null,null,25,25,null,80,null,null,null,55,40,70,60,60,60,null,null,null,90,20,null,null,null,null,null,null,null,null,null,null,null,null,null,null,null,null,null,null,null,null,null,25,null,null,null,18,null,null,null,null,20,null,40,80,null,null,null,null,null,null,null,null,null,null,null,null,null,null,15,null,null,null,100,null,null,null,null,null,null,null,null,null,null,null,null,null,null,null,null,null,null,null,null,null,null,null,null,null,null,null,null,null,null,null,null,null,null,null,null,null,null,null,null,null,null,25,25,null,25,null,null,null,null,null,16,1086]
[19,"تجهيز المواد والمعدات والأيدي العاملة اللازمة لصب خرسانة سمك 10سم للأرضيات باستخدام السمنت المقاوم للاملاح ونسبة خلط (4:2:1), شاملا العمل ازالة الطبقات المتضررة و رفع الانقاض ثم رصف طبقة كسر حجر او جلمود مع الحدل الجيد قبل الصب وكل المتطلبات لانجاز العمل حسب توجيهات المهندس المشرف على أن يتم أستخدام العمال المحليين وبموجب الأجور في السوق المحلية.","m2",65,null,null,null,75,75,null,80,100,null,null,null,null,null,null,null,60,null,null,null,null,null,null,null,null,null,null,18,null,50,null,null,null,null,null,60,null,100,null,null,null,null,null,null,null,null,null,null,null,null,null,null,null,null,null,null,null,null,null,null,null,null,null,null,null,null,null,null,60,null,null,null,null,null,20,24,null,null,null,null,25,null,null,null,null,null,null,null,null,40,null,null,null,null,null,null,null,null,null,100,null,null,null,null,null,50,null,null,150,null,null,null,null,null,null,null,null,null,null,null,18,80,null,40,null,null,null,20,20,null,20,null,null,null,null,null,null,1350]
[20,"تجهيز المواد والمعدات والأيدي العاملة اللازمة لاعمال التسطيح باستخدام الشتايكر قياس (80*80*4)سم, شاملا العمل ازالة التسطيح القديم ورفع الانقاض وتنظيف السطح ثم الطلاء بمانع الرطوبة (الفلانكوت) وطبقتين من القير وطبقة من النايلون والتهوير بالتراب النهري والتطبيق بالشتايكر مع ملئ الفواصل بالماستك مع مراعاة ميول انحدار مياه الأمطار وكل ما يتطلبه العمل حسب توجيهات المهندس المشرف على أن يتم أستخدام العمال المحليين وبموجب الأجور في السوق المحلية.","m2",null,null,null,null,null,null,100,null,null,null,null,null,null,null,null,null,null,null,null,null,null,null,null,null,null,null,null,null,null,null,null,null,null,null,null,null,null,null,null,null,null,null,null,null,164,null,null,null,null,null,null,null,null,null,null,null,null,null,null,null,null,null,null,null,null,null,null,null,null,null,75,null,null,null,null,null,null,null,null,null,null,null,null,150,null,null,null,150,null,null,40,null,null,null,150,null,null,null,null,null,null,null,null,null,null,null,null,null,null,null,null,null,null,null,null,150,null,null,null,null,null,null,null,null,null,null,null,null,null,null,null,null,null,null,null,null,null,979]
[21,"تجهيز المواد والمعدات والأيدي العاملة اللازمة لبناء مجموعة صحية خارجية بمساحة (3 م2) صافية من الداخل, وتشمل أعمال حفر وصب الاسس بالخرسانة المسلحة وبناء الجدران بالبلوك المجوف (20*20*40)سم بارتفاع صافي (2.60 سم) وصب سقف كونكريتي مسلح والانهاءات بالسيراميك من الداخل (الجدران والارضيه) واللبخ والنثر من الخارج مع تثبيت باب وهوائية PVC واعمال تاسيسات الماء والكهرباء والمجاري والقاعده الشرقية وخلاط كير دوش تركي المنشأ, شاملا العمل ازالة المجموعة الصحية القديمة ورفع الانقاض وكافة المتطلبات حسب توجيهات المهندس المشرف على أن يتم أستخدام العمال المحليين وبموجب الأجور في السوق المحلية.","EA.",null,null,1,null,1,null,null,1,null,null,null,null,1,1,null,null,1,null,null,null,null,1,null,1,1,1,1,1,null,null,null,1,1,1,1,null,1,null,null,1,1,1,null,1,null,null,1,1,null,null,null,null,1,1,null,1,null,1,1,1,1,null,null,1,null,1,null,null,null,null,1,null,null,1,null,null,null,1,1,null,1,null,null,null,null,1,1,null,null,null,1,1,null,null,null,1,null,null,1,null,null,null,null,null,null,1,1,null,null,null,null,1,1,null,1,null,null,1,null,null,null,null,1,null,null,null,null,null,null,null,null,null,null,null,null,1,1,52]
[22,"تجهيز المواد والمعدات والأيدي العاملة اللازمة لتجهيز وتثبيت خزان ماء بليت مغلون حجم (1000 لتر) كيج 16 مع الطوافة وكل المتطلبات لانجاز العمل وثتبيته على قواعد كونكريتية عدد4 وكافة التأسيسات الصحية اللازمة لربطه مع شبكة الماء الخارجية والداخلية وحسب توجيهات المهندس المشرف على أن يتم أستخدام العمال المحليين وبموجب الأجور في السوق المحلية.","EA.",null,1,1,1,1,null,null,1,null,null,1,null,1,1,1,null,1,null,null,null,null,1,null,1,1,1,1,1,null,null,2,1,1,1,null,1,1,1,null,null,null,1,null,null,null,1,null,1,null,null,1,null,null,1,null,1,1,null,1,1,null,null,null,1,null,null,null,1,1,null,null,null,null,1,null,null,null,null,1,2,1,null,null,null,null,1,1,null,null,null,null,1,null,null,null,null,1,null,2,null,null,1,null,null,1,1,null,null,null,null,null,null,null,null,2,null,1,1,null,1,null,null,null,null,null,null,null,null,null,null,null,null,null,null,null,1,1,57]
[23,"تجهيز المواد والمعدات والأيدي العاملة اللازمة لتجهيز وتركيب وتأسيس مغسلة سيراميك قياس(40*60)سم مع المسند والخلاط تركي المنشأ والأقفال وكافة الملحقات لانجاز العمل وحسب توجيهات المهندس المشرف على أن يتم أستخدام العمال المحليين وبموجب الأجور في السوق المحلية.","EA.",null,1,null,1,1,null,null,1,null,1,1,null,1,1,1,null,1,null,null,null,null,1,1,1,1,1,1,1,null,null,1,1,1,1,null,null,1,null,null,null,null,1,null,null,null,null,null,1,null,null,null,null,null,1,null,1,null,null,1,null,null,null,null,null,null,null,null,1,null,null,null,null,null,1,null,null,null,null,1,1,null,null,null,null,null,1,1,null,null,null,null,1,null,null,null,null,1,null,null,null,null,null,null,null,null,1,null,null,null,null,null,null,null,null,2,null,1,null,null,1,null,null,null,null,null,null,null,null,null,null,null,null,null,null,null,1,null,41]
[24,"تجهيز المواد والمعدات والأيدي العاملة اللازمة لتجهيز وتركيب وتأسيس حنفية ماء كروم 12ملم (1/2 انج) منشأ تركي مع كافة الملحقات لانجاز العمل وحسب توجيهات المهندس المشرف على أن يتم أستخدام العمال المحليين وبموجب الأجور في السوق المحلية.","EA.",null,null,null,null,null,null,null,null,null,null,null,null,null,null,2,null,null,null,null,null,null,null,null,null,2,null,2,2,null,null,2,null,null,null,null,null,null,null,null,null,null,null,null,null,null,null,null,null,null,null,null,null,null,null,null,null,null,null,2,null,null,null,null,null,null,null,null,null,null,null,null,null,null,null,null,null,null,null,null,null,null,null,null,null,null,null,null,null,null,null,null,null,null,null,null,null,null,null,null,null,null,null,null,null,null,null,null,null,null,null,null,null,null,null,5,null,null,null,null,null,null,null,null,null,null,null,null,null,null,null,null,null,null,null,null,null,null,17]
[25,"تجهيز المواد والمعدات والأيدي العاملة اللازمة لتجهيز وتركيب وربط انابيب (PPR) قطر 18ملم (3/4 انج) لتوصيلات الماء مع كافة ملحقات التوصيل اللازمة لانجاز العمل وحسب توجيهات المهندس المشرف على أن يتم أستخدام العمال المحليين وبموجب الأجور في السوق المحلية.","ML",null,null,null,null,null,null,null,null,null,null,null,null,null,null,20,null,null,null,null,null,null,null,null,null,12,null,null,12,null,null,12,null,null,null,null,null,null,null,null,null,null,null,null,null,null,null,null,null,null,null,null,null,null,null,null,null,null,null,15,null,null,null,null,null,null,null,null,null,null,null,null,null,null,null,null,null,null,null,null,null,null,null,null,null,null,null,null,null,null,null,null,null,null,null,null,null,null,null,null,null,null,null,null,null,null,null,null,null,null,null,null,null,null,null,15,null,null,null,null,null,null,null,null,null,null,null,null,null,null,null,null,null,null,null,null,null,null,86]
[26,"تجهيز المواد والمعدات والأيدي العاملة اللازمة لتجهيز وتركيب وتأسيس انابيب مجاري بلاستك 100ملم (4 انج) شاملا العمل اعمال الحفر والتركيب والتغليف بالخرسانة مع جميع التراكيب وملحقات التوصيل اللازمة لانجاز العمل ورفع الانقاض وحسب توجيهات المهندس المشرف على أن يتم أستخدام العمال المحليين وبموجب الأجور في السوق المحلية.","ML",15,null,null,null,null,null,null,null,null,null,null,null,null,null,null,null,null,null,null,null,null,null,null,null,null,null,null,null,null,null,null,null,null,null,null,null,null,null,null,null,null,null,null,null,null,null,null,null,null,null,null,null,null,null,null,null,null,null,null,null,null,null,null,null,null,null,null,null,null,null,null,null,null,null,null,null,null,null,null,null,null,null,null,null,null,null,null,null,null,null,null,null,null,null,null,null,null,null,null,null,null,null,null,null,null,null,null,null,null,12,null,null,null,null,null,null,null,null,null,null,null,null,null,null,null,null,null,null,null,null,null,null,null,null,null,null,null,27]
[27,"تجهيز المواد والمعدات والأيدي العاملة اللازمة لتجهيز وصب مانهولات مجاري شاملا العمل اعمال الحفر والصب والطلاء بمانع الرطوبة (الفلانكوت) والدفن مع تركيب غطاء بلاستيكي قياس (30*30)سم مع كافة الملحقات لانجاز العمل وحسب توجيهات المهندس المشرف على أن يتم أستخدام العمال المحليين وبموجب الأجور في السوق المحلية.","EA.",null,null,null,null,null,null,null,null,null,null,null,null,null,null,null,null,null,null,null,null,null,null,null,null,null,null,null,null,null,null,null,null,null,null,null,null,null,null,null,null,null,null,null,null,null,null,null,null,null,null,null,null,null,null,null,null,null,null,null,15,null,null,null,null,null,null,null,null,null,null,null,null,null,null,null,null,null,null,null,null,null,null,null,null,null,null,null,null,null,null,null,null,null,null,null,null,null,null,null,null,null,null,null,null,null,null,null,null,null,null,null,null,null,null,null,null,null,null,null,null,null,null,null,null,null,null,null,null,null,null,null,null,null,null,null,null,null,15]
[28,"تجهيز المواد والمعدات والأيدي العاملة اللازمة لتجهيز وتثبيت وتسليك وربط وتشغيل مصباح انارة 70 واط باستخدام اسلاك حجم (2*2.5ملم2), شاملا العمل كل المتطلبات اللازمة  حسب توجيهات المهندس المشرف على أن يتم أستخدام العمال المحليين وبموجب الأجور في السوق المحلية.","EA.",null,20,6,20,null,null,null,20,null,11,null,null,10,null,null,10,null,null,4,null,5,8,null,null,null,null,6,5,2,null,3,null,6,null,null,10,10,20,null,null,null,null,5,null,null,null,null,4,null,null,null,null,null,null,null,5,20,null,null,15,20,30,null,6,null,null,3,null,10,null,null,3,null,null,5,10,null,15,10,null,null,null,null,null,null,null,null,null,3,null,null,null,null,8,null,10,15,null,null,null,null,null,null,20,null,null,null,null,null,null,null,null,null,null,null,null,null,null,null,10,5,null,6,null,null,null,null,5,5,null,5,5,3,null,null,null,null,437]
[29," تجهيز المواد والمعدات والأيدي العاملة اللازمة لتجهيز وتثبيت وتسليك وربط وتشغيل مأخذ قدرة 13 أمبير باستخدام اسلاك حجم (2*2.5ملم2), شاملا العمل كل المتطلبات اللازمة  حسب توجيهات المهندس المشرف على أن يتم أستخدام العمال المحليين وبموجب الأجور في السوق المحلية.","EA.",null,20,6,20,null,null,null,10,null,7,null,null,10,null,null,10,null,null,4,null,5,4,null,null,null,null,6,5,3,null,3,null,6,null,null,10,10,10,null,null,null,null,5,null,null,null,null,4,null,null,null,null,null,null,null,5,20,null,null,null,20,30,null,6,null,null,3,null,10,null,null,3,null,null,5,10,null,15,10,null,null,null,null,null,null,null,null,null,3,null,null,null,null,8,null,10,15,null,null,null,null,null,null,20,null,null,null,null,null,null,null,null,null,null,null,null,null,null,null,10,10,null,6,null,null,null,null,5,5,null,5,5,3,null,null,null,null,400]
[30," تجهيز المواد والمعدات والأيدي العاملة اللازمة لتجهيز وتثبيت وتسليك وربط وتشغيل سخان ماء كهربائي سعة 160 لتر باستخدام اسلاك حجم (2*4ملم2) وقاطع كهربائي 60 أمبير, شاملا العمل كل التراكيب والملحقات اللازمة لانجاز العمل حسب توجيهات المهندس المشرف على أن يتم أستخدام العمال المحليين وبموجب الأجور في السوق المحلية.","EA.",null,1,null,null,null,null,null,null,null,null,null,null,1,null,null,null,1,null,null,null,null,null,null,null,1,null,1,null,null,null,null,1,null,null,null,null,1,null,null,null,null,1,null,null,null,null,null,1,null,null,null,null,null,null,null,1,null,null,1,1,null,null,null,null,null,null,null,null,null,null,null,null,null,null,null,null,null,null,null,null,null,null,null,null,null,null,null,null,null,null,null,1,null,null,null,null,null,null,1,null,null,null,1,null,null,1,null,null,null,null,null,null,null,null,1,null,null,null,null,null,null,null,null,null,null,null,null,null,null,null,null,null,null,null,null,null,null,17]
[31," تجهيز المواد والمعدات والأيدي العاملة اللازمة لتجهيز وتثبيت وتسليك وربط وتشغيل لوحة توزيع كهربائية تحتوي على قاطع رئيسي 80 امبير و 6 قواطع فرعية (10-32) امبير, شاملا العمل كل التراكيب والملحقات اللازمة لانجاز العمل حسب توجيهات المهندس المشرف على أن يتم أستخدام العمال المحليين وبموجب الأجور في السوق المحلية.","EA.",null,1,1,1,null,null,null,null,null,null,null,null,null,null,null,1,null,1,null,null,null,1,null,null,null,null,null,1,null,null,null,null,null,null,null,null,1,null,null,null,null,null,null,null,null,null,null,null,null,null,null,null,null,null,null,1,null,null,null,null,null,1,null,1,null,null,null,null,1,null,null,null,null,null,null,null,null,1,null,null,null,null,null,null,null,null,null,null,null,null,null,null,null,1,null,null,1,null,null,null,null,null,null,null,null,null,null,null,null,null,null,null,null,null,null,null,null,null,null,1,null,null,1,null,null,null,null,null,null,null,null,null,null,null,null,null,null,17]
[32," تجهيز المواد والمعدات والأيدي العاملة اللازمة لتجهيز وتثبيت وتسليك وربط كيبل كهربائي (2*10ملم2), شاملا العمل كل التراكيب والملحقات اللازمة لانجاز العمل حسب توجيهات المهندس المشرف على أن يتم أستخدام العمال المحليين وبموجب الأجور في السوق المحلية.","ML",null,null,null,1,null,null,null,null,null,null,null,null,null,null,null,35,null,null,null,null,null,null,null,null,null,null,null,null,null,null,null,null,null,null,null,null,null,null,null,null,null,null,null,null,null,null,null,null,null,null,null,null,null,null,null,null,null,null,null,null,null,null,null,null,null,null,null,null,null,null,null,null,null,null,null,null,null,null,null,null,null,null,null,null,null,null,null,null,null,null,null,null,null,null,null,null,null,null,null,null,null,null,null,null,null,null,null,null,null,null,null,null,null,null,null,null,null,null,null,null,null,null,null,null,null,null,null,null,50,null,null,null,null,null,null,null,null,86]

{"sheet":"كلفة الدار","index":1,"n_rows":14,"n_cols":13,"rows_kept":14,"cut":false,"hidden":false,"merged":[[2,5,5,5],[2,12,5,12],[6,12,11,12]]}
["رقم الدار","M1",null,null,null,null,null,"رقم الدار","M2"]
[]
["رقم الفقرة","المواد المطلوبة","الكمية","السعر  ( كلفة كل فقرة)","المبلغ الإجمالي","النتائج المطلوبة للدار المرقمة (M1)",null,"رقم الفقرة","المواد المطلوبة","الكمية","السعر  ( كلفة كل فقرة)","المبلغ الإجمالي","النتائج المطلوبة للدار المرقمة (M2)"]
[1,"تجهيز المواد والمعدات والأيدي العاملة اللازمة لتجهيز وتثبيت زجاج سمك 4ملم, ويتضمن العمل ازالة الزجاج المتضرر ورفع الانقاض وكل المتطلبات لانجاز العمل حسب توجيهات المهندس المشرف على أن يتم أستخدام العمال المحليين وبموجب الأجور في السوق المحلية.",7,3000,{"$f":"C4*D4","v":21000},null,null,1,"تجهيز المواد والمعدات والأيدي العاملة اللازمة لتجهيز وتثبيت زجاج سمك 4ملم, ويتضمن العمل ازالة الزجاج المتضرر ورفع الانقاض وكل المتطلبات لانجاز العمل حسب توجيهات المهندس المشرف على أن يتم أستخدام العمال المحليين وبموجب الأجور في السوق المحلية.",10,3000,{"$f":"J4*K4","v":30000}]
[2,"تجهيز المواد و المعدات والأيدي العاملة اللازمة لتجهيز وتبديل باب خشب (1*2.1)م كبس صاج وجهين (سمك الطبقة لا يقل عن 5ملم) والحشوة الداخلية لا تقل عن 50%, شاملا العمل ازالة الاطار القديم (الجرجوبة) و تجهيز وتثبيت اطار خشب جديد مع الصبغ ثلاث طبقات للباب والاطار مع تجهيز وتثبيت كيلون منشأ تركي نوعية جيدة, مع اعادة الانهاءات للجدران والارضية كما كانت عليها و حسب توجيهات المهندس المشرف على أن يتم أستخدام العمال المحليين وبموجب الأجور في السوق المحلية.",2,3550,{"$f":"C5*D5","v":7100},null,null,4,"تجهيز المواد و المعدات والأيدي العاملة اللازمة لتجهيز وتبديل باب حديد (1*2.1)م كبس وجهين (سمك طبقة البليت لا يقل عن 1.5ملم) مع اطار داخلي انبوب مستطيل (4*7.5 سم) سمك 2 ملم مع استبدال الاطار القديم (الجرجوبة) باطار حديد جديد على أن يتم صبغ الباب والاطار بطلاء مانع الصدأ ومن ثم الصبغ بالطلاء الدهني ثلاث طبقات مع تجهيز وتثبيت كيلون منشأ تركي نوعية جيدة, شاملا العمل اعادة الانهاءات للجدران والارضية كما كانت عليها وكل المتطلبات حسب توجيهات المهندس المشرف على أن يتم أستخدام العمال المحليين وبموجب الأجور في السوق المحلية.",9,5500,{"$f":"J5*K5","v":49500}]
[3,"تجهيز المواد و المعدات والأيدي العاملة اللازمة لتجهيز وتبديل باب خشب (1*2.1)م كبس صاج وجهين (سمك الطبقة لا يقل عن 4ملم) والحشوة الداخلية لا تقل عن 50%, شاملا العمل صيانة الاطار القديم (الجرجوبة) مع الصبغ ثلاث طبقات للباب والاطار مع تجهيز وتثبيت كيلون منشأ تركي نوعية جيدة مع كل المتطلبات و حسب توجيهات المهندس المشرف على أن يتم أستخدام العمال المحليين وبموجب الأجور في السوق المحلية.",4,4000,16000,null,null,5,"تجهيز المواد والمعدات والأيدي العاملة اللازمة لتجهيز وتثبيت باب PVC بلاستك (0.9*2)م مع الاطار وتثبيت كيلون منشأ تركي نوعية جيدة وكل المتطلبات لانجاز العمل وحسب توجيهات المهندس المشرف على أن يتم أستخدام العمال المحليين وبموجب الأجور في السوق المحلية.",1,4000,4000]
[7,"تجهيز المواد والمعدات والعمل لتجهيز وتثبيت شبابيك حديد مع كتائب الحماية,على أن يتم صبغ الشباك بطلاء مانع الصدأ ومن ثم الصبغ بالطلاء الدهني ثلاث طبقات مع تثبيت زجاج 4 ملم واقفال نوعية جيدة ومشبك مانع ذباب للفتحات المتحركة وكل المتطلبات من اعمال انهاءات الجدار من الداخل والخارج حسب الموقع بعد تثبيت الشباك وحسب توجيهات المهندس المشرف على أن يتم أستخدام العمال المحليين وبموجب الأجور في السوق المحلية.",2,8500,17000,null,null,11,"تجهيز المواد و المعدات والأيدي العاملة اللازمة لصبغ السقوف والجدران بالاصباغ البلاستيكية ثلاث طبقات, شاملا العمل اعمال التصليحات والمعالجة والطلاء الاساس وكل المتطلبات حسب توجيهات المهندس المشرف على أن يتم أستخدام العمال المحليين وبموجب الأجور في السوق المحلية.",200,6800,1360000,"وهكذا كل دار لها فقرات ومواد معينة حسب ما موجود بشيت الكشف المطلوب وكل فقرة مسعرة حسب شيت كلفة الفقرة"]
[9,"تجهيز المواد والمعدات والأيدي العاملة اللازمة لاعمال انهاءات السقوف والجدران الداخلية, شاملا العمل قشط وازالة المساحات المتضررة ورفع الانقاض واعادة السطار والبياض من جديد بالجص والبورك وكل المتطلبات لانجاز العمل حسب توجيهات المهندس المشرف على أن يتم أستخدام العمال المحليين وبموجب الأجور في السوق المحلية.",50,6400,320000,null,null,18,"تجهيز المواد والمعدات والعمل لتثبيت سقوف وقواطع من الساندويج بنل (5سم) مع هيكل حديد من انبوب مقطع مستطيل بوري شخاطة (4*7.5)سم سمك 2ملم شاملا العمل صبغ الهيكل بطلاء مانع الصدأ وطبقتين من الطلاء الدهني وكل المتطلبات لانجاز العمل حسب توجيهات المهندس المشرف على أن يتم أستخدام العمال المحليين وبموجب الأجور في السوق المحلية.",18,9000,162000]
[15,"تجهيز المواد والمعدات والأيدي العاملة اللازمة لاعمال تغليف سيراميك جدران وارضيات باستخدام مونة السمنت والرمل (3:1), شاملا العمل قلع الطبقات الحالية المتضررة ورفع الانقاض وتغليف سيراميك جديد وكل المتطلبات لانجاز العمل حسب توجيهات المهندس المشرف على أن يتم أستخدام العمال المحليين وبموجب الأجور في السوق المحلية.",50,1500,75000,null,null,22,"تجهيز المواد والمعدات والأيدي العاملة اللازمة لتجهيز وتثبيت خزان ماء بليت مغلون حجم (1000 لتر) كيج 16 مع الطوافة وكل المتطلبات لانجاز العمل وثتبيته على قواعد كونكريتية عدد4 وكافة التأسيسات الصحية اللازمة لربطه مع شبكة الماء الخارجية والداخلية وحسب توجيهات المهندس المشرف على أن يتم أستخدام العمال المحليين وبموجب الأجور في السوق المحلية.",1,7500,7500]
[18,"تجهيز المواد والمعدات والعمل لتثبيت سقوف وقواطع من الساندويج بنل (5سم) مع هيكل حديد من انبوب مقطع مستطيل بوري شخاطة (4*7.5)سم سمك 2ملم شاملا العمل صبغ الهيكل بطلاء مانع الصدأ وطبقتين من الطلاء الدهني وكل المتطلبات لانجاز العمل حسب توجيهات المهندس المشرف على أن يتم أستخدام العمال المحليين وبموجب الأجور في السوق المحلية.",24,9000,216000,null,null,23,"تجهيز المواد والمعدات والأيدي العاملة اللازمة لتجهيز وتركيب وتأسيس مغسلة سيراميك قياس(40*60)سم مع المسند والخلاط تركي المنشأ والأقفال وكافة الملحقات لانجاز العمل وحسب توجيهات المهندس المشرف على أن يتم أستخدام العمال المحليين وبموجب الأجور في السوق المحلية.",1,2000,2000]
[19,"تجهيز المواد والمعدات والأيدي العاملة اللازمة لصب خرسانة سمك 10سم للأرضيات باستخدام السمنت المقاوم للاملاح ونسبة خلط (4:2:1), شاملا العمل ازالة الطبقات المتضررة و رفع الانقاض ثم رصف طبقة كسر حجر او جلمود مع الحدل الجيد قبل الصب وكل المتطلبات لانجاز العمل حسب توجيهات المهندس المشرف على أن يتم أستخدام العمال المحليين وبموجب الأجور في السوق المحلية.",65,2500,162500,null,null,28,"تجهيز المواد والمعدات والأيدي العاملة اللازمة لتجهيز وتثبيت وتسليك وربط وتشغيل مصباح انارة 70 واط باستخدام اسلاك حجم (2*2.5ملم2), شاملا العمل كل المتطلبات اللازمة  حسب توجيهات المهندس المشرف على أن يتم أستخدام العمال المحليين وبموجب الأجور في السوق المحلية.",20,1500,30000]
[26,"تجهيز المواد والمعدات والأيدي العاملة اللازمة لتجهيز وتركيب وتأسيس انابيب مجاري بلاستك 100ملم (4 انج) شاملا العمل اعمال الحفر والتركيب والتغليف بالخرسانة مع جميع التراكيب وملحقات التوصيل اللازمة لانجاز العمل ورفع الانقاض وحسب توجيهات المهندس المشرف على أن يتم أستخدام العمال المحليين وبموجب الأجور في السوق المحلية.",15,2000,30000,null,null,29," تجهيز المواد والمعدات والأيدي العاملة اللازمة لتجهيز وتثبيت وتسليك وربط وتشغيل مأخذ قدرة 13 أمبير باستخدام اسلاك حجم (2*2.5ملم2), شاملا العمل كل المتطلبات اللازمة  حسب توجيهات المهندس المشرف على أن يتم أستخدام العمال المحليين وبموجب الأجور في السوق المحلية.",20,1000,20000]
[null,null,null,null,null,null,null,30," تجهيز المواد والمعدات والأيدي العاملة اللازمة لتجهيز وتثبيت وتسليك وربط وتشغيل سخان ماء كهربائي سعة 160 لتر باستخدام اسلاك حجم (2*4ملم2) وقاطع كهربائي 60 أمبير, شاملا العمل كل التراكيب والملحقات اللازمة لانجاز العمل حسب توجيهات المهندس المشرف على أن يتم أستخدام العمال المحليين وبموجب الأجور في السوق المحلية.",1,1100,1100]
[null,null,null,null,null,null,null,31," تجهيز المواد والمعدات والأيدي العاملة اللازمة لتجهيز وتثبيت وتسليك وربط وتشغيل لوحة توزيع كهربائية تحتوي على قاطع رئيسي 80 امبير و 6 قواطع فرعية (10-32) امبير, شاملا العمل كل التراكيب والملحقات اللازمة لانجاز العمل حسب توجيهات المهندس المشرف على أن يتم أستخدام العمال المحليين وبموجب الأجور في السوق المحلية.",1,6000,6000]

{"sheet":"كلفة الفقرة","index":2,"n_rows":33,"n_cols":4,"rows_kept":33,"cut":false,"hidden":false,"merged":[]}
["رقم الفقرة","المواد والعمل المطلوب","Unit","سعر الوحدة ( متر - عدد - فوت - جملة )"]
[1,"تجهيز المواد والمعدات والأيدي العاملة اللازمة لتجهيز وتثبيت زجاج سمك 4ملم, ويتضمن العمل ازالة الزجاج المتضرر ورفع الانقاض وكل المتطلبات لانجاز العمل حسب توجيهات المهندس المشرف على أن يتم أستخدام العمال المحليين وبموجب الأجور في السوق المحلية.","m2",3000]
[2,"تجهيز المواد و المعدات والأيدي العاملة اللازمة لتجهيز وتبديل باب خشب (1*2.1)م كبس صاج وجهين (سمك الطبقة لا يقل عن 5ملم) والحشوة الداخلية لا تقل عن 50%, شاملا العمل ازالة الاطار القديم (الجرجوبة) و تجهيز وتثبيت اطار خشب جديد مع الصبغ ثلاث طبقات للباب والاطار مع تجهيز وتثبيت كيلون منشأ تركي نوعية جيدة, مع اعادة الانهاءات للجدران والارضية كما كانت عليها و حسب توجيهات المهندس المشرف على أن يتم أستخدام العمال المحليين وبموجب الأجور في السوق المحلية.","EA.",3550]
[3,"تجهيز المواد و المعدات والأيدي العاملة اللازمة لتجهيز وتبديل باب خشب (1*2.1)م كبس صاج وجهين (سمك الطبقة لا يقل عن 4ملم) والحشوة الداخلية لا تقل عن 50%, شاملا العمل صيانة الاطار القديم (الجرجوبة) مع الصبغ ثلاث طبقات للباب والاطار مع تجهيز وتثبيت كيلون منشأ تركي نوعية جيدة مع كل المتطلبات و حسب توجيهات المهندس المشرف على أن يتم أستخدام العمال المحليين وبموجب الأجور في السوق المحلية.","EA.",4000]
[4,"تجهيز المواد و المعدات والأيدي العاملة اللازمة لتجهيز وتبديل باب حديد (1*2.1)م كبس وجهين (سمك طبقة البليت لا يقل عن 1.5ملم) مع اطار داخلي انبوب مستطيل (4*7.5 سم) سمك 2 ملم مع استبدال الاطار القديم (الجرجوبة) باطار حديد جديد على أن يتم صبغ الباب والاطار بطلاء مانع الصدأ ومن ثم الصبغ بالطلاء الدهني ثلاث طبقات مع تجهيز وتثبيت كيلون منشأ تركي نوعية جيدة, شاملا العمل اعادة الانهاءات للجدران والارضية كما كانت عليها وكل المتطلبات حسب توجيهات المهندس المشرف على أن يتم أستخدام العمال المحليين وبموجب الأجور في السوق المحلية.","EA.",5500]
[5,"تجهيز المواد والمعدات والأيدي العاملة اللازمة لتجهيز وتثبيت باب PVC بلاستك (0.9*2)م مع الاطار وتثبيت كيلون منشأ تركي نوعية جيدة وكل المتطلبات لانجاز العمل وحسب توجيهات المهندس المشرف على أن يتم أستخدام العمال المحليين وبموجب الأجور في السوق المحلية.","EA.",4000]
[6,"تجهيز المواد والمعدات والأيدي العاملة اللازمة لتثبيت باب حديد سلايد (3*2)م باستخدام بليت لا يقل سمكه عن 2ملم ومقاطع حديد قياس (4* 7.5)سم سمك 3 ملم على أن يتم صبغ كل الاجزاء بطلاء مانع الصدأ ومن ثم الصبغ بالطلاء الدهني ثلاث طبقات مع تثبيت كيلون منشأ تركي نوعية جيدة, شاملا العمل صب قواعد وأعمدة كونكريتية مسلحة عدد2 ولبخ الأعمدة بمونة الاسمنت والرمل مع النثر أو الصبغ وكل المتطلبات حسب توجيهات المهندس المشرف على أن يتم أستخدام العمال المحليين وبموجب الأجور في السوق المحلية. ","EA.",7000]
[7,"تجهيز المواد والمعدات والعمل لتجهيز وتثبيت شبابيك حديد مع كتائب الحماية,على أن يتم صبغ الشباك بطلاء مانع الصدأ ومن ثم الصبغ بالطلاء الدهني ثلاث طبقات مع تثبيت زجاج 4 ملم واقفال نوعية جيدة ومشبك مانع ذباب للفتحات المتحركة وكل المتطلبات من اعمال انهاءات الجدار من الداخل والخارج حسب الموقع بعد تثبيت الشباك وحسب توجيهات المهندس المشرف على أن يتم أستخدام العمال المحليين وبموجب الأجور في السوق المحلية.","m2",8500]
[8,"تجهيز المواد والمعدات والعمل لتجهيز وتثبيت شبابيك (PVC)بلاستك مع تثبيت زجاج 4 ملم واقفال نوعية جيدة ومشبك مانع ذباب للفتحات المتحركة وكل المتطلبات وحسب توجيهات المهندس المشرف على أن يتم أستخدام العمال المحليين وبموجب الأجور في السوق المحلية.","m2",6000]
[9,"تجهيز المواد والمعدات والأيدي العاملة اللازمة لاعمال انهاءات السقوف والجدران الداخلية, شاملا العمل قشط وازالة المساحات المتضررة ورفع الانقاض واعادة السطار والبياض من جديد بالجص والبورك وكل المتطلبات لانجاز العمل حسب توجيهات المهندس المشرف على أن يتم أستخدام العمال المحليين وبموجب الأجور في السوق المحلية.","m2",6400]
[10,"تجهيز المواد والمعدات والأيدي العاملة اللازمة لاعمال اللبخ بمونة السمنت والرمل بنسبة (3:1), شاملا العمل قشط وازالة المساحات المتضررة ورفع الانقاض واعادة اللبخ من جديد وحسب توجيهات المهندس المشرف على أن يتم أستخدام العمال المحليين وبموجب الأجور في السوق المحلية.","m2",9000]
[11,"تجهيز المواد و المعدات والأيدي العاملة اللازمة لصبغ السقوف والجدران بالاصباغ البلاستيكية ثلاث طبقات, شاملا العمل اعمال التصليحات والمعالجة والطلاء الاساس وكل المتطلبات حسب توجيهات المهندس المشرف على أن يتم أستخدام العمال المحليين وبموجب الأجور في السوق المحلية.","m2",6800]
[12,"تجهيز المواد والمعدات والأيدي العاملة اللازمة لبناء ستارة باستخدام بلوك مجوف قياس (15*20*40)سم ومونة السمنت والرمل (3:1) شاملا العمل ازالة الاجزاء المتضررة ورفع الانقاض وكل المتطلبات لانجاز العمل وحسب توجيهات المهندس المشرف على أن يتم أستخدام العمال المحليين وبموجب الأجور في السوق المحلية.","m2",1000]
[13,"تجهيز المواد والمعدات والأيدي العاملة اللازمة لبناء الجدران باستخدام بلوك مجوف قياس (20*20*40)سم ومونة السمنت والرمل (3:1) شاملا العمل ازالة الاجزاء المتضررة ورفع الانقاض وكل المتطلبات لانجاز العمل وحسب توجيهات المهندس المشرف على أن يتم أستخدام العمال المحليين وبموجب الأجور في السوق المحلية.","m2",9800]
[14,"تجهيز المواد والمعدات والأيدي العاملة اللازمة لبناء جدران حجر سمك 30سم باستخدام مونة السمنت والرمل (3:1) شاملا العمل ازالة الاجزاء المتضررة ورفع الانقاض وكل المتطلبات لانجاز العمل وحسب توجيهات المهندس المشرف على أن يتم أستخدام العمال المحليين وبموجب الأجور في السوق المحلية.","m2",1100]
[15,"تجهيز المواد والمعدات والأيدي العاملة اللازمة لاعمال تغليف سيراميك جدران وارضيات باستخدام مونة السمنت والرمل (3:1), شاملا العمل قلع الطبقات الحالية المتضررة ورفع الانقاض وتغليف سيراميك جديد وكل المتطلبات لانجاز العمل حسب توجيهات المهندس المشرف على أن يتم أستخدام العمال المحليين وبموجب الأجور في السوق المحلية.","m2",1500]
[16,"تجهيز المواد والمعدات والأيدي العاملة اللازمة لاعمال تغليف ارضيات بالكاشي الموزائيك باستخدام مونة السمنت والرمل (3:1), شاملا العمل قلع الطبقات الحالية المتضررة ورفع الانقاض وكل المتطلبات لانجاز العمل و حسب توجيهات المهندس المشرف على أن يتم أستخدام العمال المحليين وبموجب الأجور في السوق المحلية.","m2",2000]
[17,"تجهيز المواد والمعدات والأيدي العاملة اللازمة لصب كونكريت مسلح, (12 ملم) حديد التسليح, (15*15 سم) المسافة البينية بين القضبان, سمك الصب (20 سم) للأجزاء المتضررة من السقوف بنسبة خلط (3:1.5:1) مع اضافة مادة SBR لربطه مع الكونكريت القديم شاملا العمل قلع المساحات المتضررة ورفع الانقاض وكل المتطلبات لانجاز العمل حسب توجيهات المهندس المشرف على أن يتم أستخدام العمال المحليين وبموجب الأجور في السوق المحلية.","m2",3000]
[18,"تجهيز المواد والمعدات والعمل لتثبيت سقوف وقواطع من الساندويج بنل (5سم) مع هيكل حديد من انبوب مقطع مستطيل بوري شخاطة (4*7.5)سم سمك 2ملم شاملا العمل صبغ الهيكل بطلاء مانع الصدأ وطبقتين من الطلاء الدهني وكل المتطلبات لانجاز العمل حسب توجيهات المهندس المشرف على أن يتم أستخدام العمال المحليين وبموجب الأجور في السوق المحلية.","m2",9000]
[19,"تجهيز المواد والمعدات والأيدي العاملة اللازمة لصب خرسانة سمك 10سم للأرضيات باستخدام السمنت المقاوم للاملاح ونسبة خلط (4:2:1), شاملا العمل ازالة الطبقات المتضررة و رفع الانقاض ثم رصف طبقة كسر حجر او جلمود مع الحدل الجيد قبل الصب وكل المتطلبات لانجاز العمل حسب توجيهات المهندس المشرف على أن يتم أستخدام العمال المحليين وبموجب الأجور في السوق المحلية.","m2",2500]
[20,"تجهيز المواد والمعدات والأيدي العاملة اللازمة لاعمال التسطيح باستخدام الشتايكر قياس (80*80*4)سم, شاملا العمل ازالة التسطيح القديم ورفع الانقاض وتنظيف السطح ثم الطلاء بمانع الرطوبة (الفلانكوت) وطبقتين من القير وطبقة من النايلون والتهوير بالتراب النهري والتطبيق بالشتايكر مع ملئ الفواصل بالماستك مع مراعاة ميول انحدار مياه الأمطار وكل ما يتطلبه العمل حسب توجيهات المهندس المشرف على أن يتم أستخدام العمال المحليين وبموجب الأجور في السوق المحلية.","m2",1200]
[21,"تجهيز المواد والمعدات والأيدي العاملة اللازمة لبناء مجموعة صحية خارجية بمساحة (3 م2) صافية من الداخل, وتشمل أعمال حفر وصب الاسس بالخرسانة المسلحة وبناء الجدران بالبلوك المجوف (20*20*40)سم بارتفاع صافي (2.60 سم) وصب سقف كونكريتي مسلح والانهاءات بالسيراميك من الداخل (الجدران والارضيه) واللبخ والنثر من الخارج مع تثبيت باب وهوائية PVC واعمال تاسيسات الماء والكهرباء والمجاري والقاعده الشرقية وخلاط كير دوش تركي المنشأ, شاملا العمل ازالة المجموعة الصحية القديمة ورفع الانقاض وكافة المتطلبات حسب توجيهات المهندس المشرف على أن يتم أستخدام العمال المحليين وبموجب الأجور في السوق المحلية.","EA.",3000]
[22,"تجهيز المواد والمعدات والأيدي العاملة اللازمة لتجهيز وتثبيت خزان ماء بليت مغلون حجم (1000 لتر) كيج 16 مع الطوافة وكل المتطلبات لانجاز العمل وثتبيته على قواعد كونكريتية عدد4 وكافة التأسيسات الصحية اللازمة لربطه مع شبكة الماء الخارجية والداخلية وحسب توجيهات المهندس المشرف على أن يتم أستخدام العمال المحليين وبموجب الأجور في السوق المحلية.","EA.",7500]
[23,"تجهيز المواد والمعدات والأيدي العاملة اللازمة لتجهيز وتركيب وتأسيس مغسلة سيراميك قياس(40*60)سم مع المسند والخلاط تركي المنشأ والأقفال وكافة الملحقات لانجاز العمل وحسب توجيهات المهندس المشرف على أن يتم أستخدام العمال المحليين وبموجب الأجور في السوق المحلية.","EA.",2000]
[24,"تجهيز المواد والمعدات والأيدي العاملة اللازمة لتجهيز وتركيب وتأسيس حنفية ماء كروم 12ملم (1/2 انج) منشأ تركي مع كافة الملحقات لانجاز العمل وحسب توجيهات المهندس المشرف على أن يتم أستخدام العمال المحليين وبموجب الأجور في السوق المحلية.","EA.",2000]
[25,"تجهيز المواد والمعدات والأيدي العاملة اللازمة لتجهيز وتركيب وربط انابيب (PPR) قطر 18ملم (3/4 انج) لتوصيلات الماء مع كافة ملحقات التوصيل اللازمة لانجاز العمل وحسب توجيهات المهندس المشرف على أن يتم أستخدام العمال المحليين وبموجب الأجور في السوق المحلية.","ML",1900]
[26,"تجهيز المواد والمعدات والأيدي العاملة اللازمة لتجهيز وتركيب وتأسيس انابيب مجاري بلاستك 100ملم (4 انج) شاملا العمل اعمال الحفر والتركيب والتغليف بالخرسانة مع جميع التراكيب وملحقات التوصيل اللازمة لانجاز العمل ورفع الانقاض وحسب توجيهات المهندس المشرف على أن يتم أستخدام العمال المحليين وبموجب الأجور في السوق المحلية.","ML",2000]
[27,"تجهيز المواد والمعدات والأيدي العاملة اللازمة لتجهيز وصب مانهولات مجاري شاملا العمل اعمال الحفر والصب والطلاء بمانع الرطوبة (الفلانكوت) والدفن مع تركيب غطاء بلاستيكي قياس (30*30)سم مع كافة الملحقات لانجاز العمل وحسب توجيهات المهندس المشرف على أن يتم أستخدام العمال المحليين وبموجب الأجور في السوق المحلية.","EA.",1000]
[28,"تجهيز المواد والمعدات والأيدي العاملة اللازمة لتجهيز وتثبيت وتسليك وربط وتشغيل مصباح انارة 70 واط باستخدام اسلاك حجم (2*2.5ملم2), شاملا العمل كل المتطلبات اللازمة  حسب توجيهات المهندس المشرف على أن يتم أستخدام العمال المحليين وبموجب الأجور في السوق المحلية.","EA.",1500]
[29," تجهيز المواد والمعدات والأيدي العاملة اللازمة لتجهيز وتثبيت وتسليك وربط وتشغيل مأخذ قدرة 13 أمبير باستخدام اسلاك حجم (2*2.5ملم2), شاملا العمل كل المتطلبات اللازمة  حسب توجيهات المهندس المشرف على أن يتم أستخدام العمال المحليين وبموجب الأجور في السوق المحلية.","EA.",1000]
[30," تجهيز المواد والمعدات والأيدي العاملة اللازمة لتجهيز وتثبيت وتسليك وربط وتشغيل سخان ماء كهربائي سعة 160 لتر باستخدام اسلاك حجم (2*4ملم2) وقاطع كهربائي 60 أمبير, شاملا العمل كل التراكيب والملحقات اللازمة لانجاز العمل حسب توجيهات المهندس المشرف على أن يتم أستخدام العمال المحليين وبموجب الأجور في السوق المحلية.","EA.",1100]
[31," تجهيز المواد والمعدات والأيدي العاملة اللازمة لتجهيز وتثبيت وتسليك وربط وتشغيل لوحة توزيع كهربائية تحتوي على قاطع رئيسي 80 امبير و 6 قواطع فرعية (10-32) امبير, شاملا العمل كل التراكيب والملحقات اللازمة لانجاز العمل حسب توجيهات المهندس المشرف على أن يتم أستخدام العمال المحليين وبموجب الأجور في السوق المحلية.","EA.",6000]
[32," تجهيز المواد والمعدات والأيدي العاملة اللازمة لتجهيز وتثبيت وتسليك وربط كيبل كهربائي (2*10ملم2), شاملا العمل كل التراكيب والملحقات اللازمة لانجاز العمل حسب توجيهات المهندس المشرف على أن يتم أستخدام العمال المحليين وبموجب الأجور في السوق المحلية.","ML",1500]